Cogmind - Beta 10.2 @@@ ROGUE MODE // 2020.10.30 @ 21:49:31 // Halloween2020/ForbiddenLore Player: blelm Result: Self-destructed Performance ------------- Evolutions (4) 2000 Regions Visited (14) 2800 Robots Destroyed (116) 580 Value Destroyed (3791) 3791 Prototype IDs (37) 740 Alien Tech Used (0) 0 Bonus (752) 752 TOTAL SCORE: 10663 Bonus ------- High Alert Combat Kills 145 Follower Combat Kills 307 Aligned with FarCom 300 Cogmind --------- Core Integrity 571/850 Matter 100/300 Energy 40/100 System Corruption 3% Temperature Cool (26) Movement Hovering (68) Location -6/Lower Caves Parts ------- > --- POWER (1) -------- (None) > --- PROPULSION (4) --- Combat Airjet Combat Airjet Combat Airjet Combat Airjet > --- UTILITY (8) ------ Large Storage Unit Large Storage Unit Advanced Terrain Scan Processor Improved Propulsion Shielding Hacking Suite Hacking Suite Improved System Shield System Backup Module > --- WEAPON (2) ------- Enhanced Autogun > --- INVENTORY (16) --- Improved Gravmag System Improved Gravmag System Improved Gravmag System Combat Airjet Matter Compressor (250) Advanced ECM Suite Cloak of Protection EM Shield Improved Hacking Suite Long-range Missile Launcher Greatsword Peak State ------------ > --- POWER ------------ Light Fission Core > --- PROPULSION ------- Improved Airjet Cooled Airjet Cooled Airjet Cooled Airjet > --- UTILITY ---------- Large Storage Unit Large Storage Unit Experimental Signal Interpreter Advanced Terrain Scan Processor Hacking Suite Hacking Suite Hacking Suite Improved System Shield > --- WEAPON ----------- Cooled Plasma Cannon Enhanced Autogun > --- INVENTORY -------- Light Angular Momentum Engine Improved Gravmag System Improved Gravmag System Improved Gravmag System Combat Airjet Matter Compressor Improved Maneuvering Thrusters Cloak of Protection Improved Propulsion Shielding Improved Propulsion Shielding EM Shield Improved Hacking Suite Enhanced Autogun Missile Launcher Greatsword [Rating: 68] Favorites ----------- Power Light Nuclear Core Engine Light Angular Momentum Engine Power Core Light Nuclear Core Propulsion Improved Treads Treads Improved Treads Leg Aluminum Leg Wheel Compact Wheel Hover Unit Cooled Airjet Utility High-capacity Storage Unit Device Shield Generator Storage High-capacity Storage Unit Processor Advanced Terrain Scan Processor Hackware Hacking Suite Protection Improved Light Armor Plating Weapon Enhanced Autogun Energy Gun Small Laser Energy Cannon Cooled Plasma Cannon Ballistic Gun Enhanced Autogun Ballistic Cannon Gauss Cannon Launcher Long-range Missile Launcher Special Weapon Remote Datajack Slashing Weapon Chainsword Build | -11 -10 -10 -9 -9 -9 -8 -8 -7 -7 -7 -6 -6 -6 -6 ------- Run | Scr Mat Min Mat Min Exi Min Mat Fac Low Low Fac Was Fac Low Slots Evolved 8 | . . . 2 . . . 2 2 . . 2 . . . Power . | . . . . . . . . . . . . . . . Propulsion 2 | . . . 1 . . . . 1 . . . . . . Utility 6 | . . . 1 . . . 2 1 . . 2 . . . Weapon . | . . . . . . . . . . . . . . . Parts Attached 200 | 4 9 . 4 5 2 4 17 60 14 . 2 1 75 3 Power 14 | . 1 . . . . . 1 4 1 . . . 7 . Engine 8 | . . . . . . . . 4 1 . . . 3 . Core 6 | . 1 . . . . . 1 . . . . . 4 . Reactor . | . . . . . . . . . . . . . . . Propulsion 37 | 2 3 . 1 . . . 2 15 1 . . . 13 . Treads 13 | 1 3 . 1 . . . 2 6 . . . . . . Leg . | . . . . . . . . . . . . . . . Wheel 1 | 1 . . . . . . . . . . . . . . Hover 23 | . . . . . . . . 9 1 . . . 13 . Flight . | . . . . . . . . . . . . . . . Utility 74 | 1 4 . 3 2 2 . 4 18 4 . 2 . 32 2 Device 32 | . . . 1 2 . . 1 6 2 . . . 19 1 Storage 13 | 1 4 . 2 . 2 . 1 2 . . . . 1 . Processor 2 | . . . . . . . . 1 . . . . 1 . Hackware 8 | . . . . . . . . 4 . . 1 . 3 . Protection 19 | . . . . . . . 2 5 2 . 1 . 8 1 Artifact . | . . . . . . . . . . . . . . . Weapon 75 | 1 1 . . 3 . 4 10 23 8 . . 1 23 1 Energy Gun . | . . . . . . . . . . . . . . . Energy Cannon 5 | . . . . 1 . . . . . . . . 4 . Ballistic Gun 37 | 1 1 . . 1 . . 7 11 3 . . . 12 1 Ballistic Cannon 2 | . . . . . . 2 . . . . . . . . Launcher 11 | . . . . 1 . 2 3 1 1 . . . 3 . Special Weapon 2 | . . . . . . . . 1 1 . . . . . Impact Weapon . | . . . . . . . . . . . . . . . Slashing Weapon 18 | . . . . . . . . 10 3 . . 1 4 . Piercing Weapon . | . . . . . . . . . . . . . . . Special Melee Weapon . | . . . . . . . . . . . . . . . Unidentified Prototypes 7 | . . . . 1 . . 1 2 . . . . 3 . Parts Lost 18 | . . . . . . . 3 5 1 . . . 6 3 Power 6 | . . . . . . . 1 1 1 . . . 2 1 Propulsion 2 | . . . . . . . 1 1 . . . . . . Utility 7 | . . . . . . . 1 2 . . . . 3 1 Weapon 3 | . . . . . . . . 1 . . . . 1 1 Highest Loss Streak 2 | . . . . . . . 1 2 1 . . . 2 2 Average Slot Usage (%) 98 | . 98 100 100 100 100 100 99 97 97 100 100 95 96 99 Engine 2 | . 4 . . . . . . 6 6 7 6 6 . 5 Core 5 | . 9 14 11 11 11 11 8 . . . . . 5 . Treads 16 | . 25 28 33 33 33 33 26 13 . . . . . . Hover 11 | . . . . . . . . 16 30 30 26 26 25 26 Device 6 | . . . 9 11 11 11 8 4 5 7 6 6 5 8 Storage 20 | . 26 28 23 22 22 22 27 18 15 15 13 13 13 13 Processor 2 | . . . . . . . . 1 7 7 6 6 6 6 Hackware 8 | . . . . . . . . 8 15 15 20 20 22 20 Protection 4 | . . . . . . . 9 9 1 . 6 6 2 3 Energy Cannon 1 | . . . . 1 11 11 . . . . . . 3 6 Ballistic Gun 12 | . 27 28 22 20 11 1 16 10 8 15 13 5 4 5 Slashing Weapon 1 | . . . . . . . . 4 4 . . 3 1 . Naked Turns . | . . . . . . . . . . . . . . . Heaviest Build 120 | 12 40 40 72 64 80 85 120 117 49 44 46 46 63 55 Greatest Support 97 | 20 46 46 69 69 69 69 69 97 52 52 52 52 88 88 Greatest Overweight (x) 1 | . . . 1 . 1 1 1 1 . . . . 1 . Average Overweight (x) . | . . . . . . 1 1 . . . . . . . Largest Inventory Capacity 28 | 6 16 16 24 18 20 20 28 28 16 16 16 16 22 16 Average Capacity 19 | 5 9 16 18 18 19 20 27 21 16 16 16 16 16 16 Most Carried 28 | 6 12 11 13 16 17 19 25 28 16 16 15 15 19 13 Average Carried 16 | 4 8 11 10 12 16 18 19 20 15 16 14 14 15 12 Final Capacity 28 | 6 16 16 18 18 20 20 28 16 16 16 16 16 16 16 Final Carried 22 | 4 11 11 12 15 17 19 22 16 16 16 14 15 13 12 Class Distribution -------------------- 35% | Hauler-Mutant 23% | Hacker-Mutant 21% | Mutant 16% | Hacker-Scout Dominant Class ---------------- Mutant | -10/Materials Mutant | -10/Mines Mutant | -9/Materials Mutant | -9/Mines Hauler-Mutant | -9/Exiles Hauler-Mutant | -8/Mines Hauler-Mutant | -8/Materials Hauler-Mutant | -7/Factory Hacker-Mutant | -7/Lower Caves Hacker-Mutant | -7/Lower Caves Hacker-Scout | -6/Factory Hacker-Scout | -6/Waste Hacker-Scout | -6/Factory Hacker-Mutant | -6/Lower Caves Resources | -11 -10 -10 -9 -9 -9 -8 -8 -7 -7 -7 -6 -6 -6 -6 ----------- Run | Scr Mat Min Mat Min Exi Min Mat Fac Low Low Fac Was Fac Low Matter Collected 3992 | 240 318 . 137 56 . 184 593 975 369 . . 36 1084 . Remotely . | . . . . . . . . . . . . . . . Salvage Created 4074 | . 337 . 73 147 . 162 1113 1211 297 . . . 734 . Parts 253 | . 23 . 4 7 . 14 74 76 9 . . . 46 . Haulers Intercepted 7 | . 1 . . . . . 3 2 . . . . 1 . Recyclers Shooed 3 | . . . . 1 . . 1 . . . . . 1 . Parts Field Recycled . | . . . . . . . . . . . . . . . Retrieved Matter . | . . . . . . . . . . . . . . . Parts Self-Destructed 12 | . . . . . . . . . 12 . . . . . Prevented . | . . . . . . . . . . . . . . . Kills | -11 -10 -10 -9 -9 -9 -8 -8 -7 -7 -7 -6 -6 -6 -6 ------- Run | Scr Mat Min Mat Min Exi Min Mat Fac Low Low Fac Was Fac Low Combat Hostiles Destroyed 86 | . 10 . 1 2 . 7 30 20 6 . . . 10 . Melee 2 | . . . . . . . . 1 . . . . 1 . Guns 57 | . 10 . 1 2 . . 20 15 5 . . . 4 . Cannons 5 | . . . . . . 2 1 . . . . . 2 . AOE 22 | . . . . . . 5 9 4 1 . . . 3 . Classes Destroyed 15 | . 4 . 2 3 . 2 . 2 2 . . . . . Worker 5 | . 1 . . . . 1 . 1 . . . . 2 . Builder 3 | . . . . . . 1 . 1 . . . . 1 . Tunneler 2 | . . . . 1 . . . 1 . . . . . . Hauler 7 | . 1 . . . . . 3 2 . . . . 1 . Recycler 5 | . . . . 1 . . . 3 . . . . 1 . Operator 6 | . . . 1 . . . 1 2 . . . . 2 . Watcher 2 | . . . . . . . . 1 . . . . 1 . Swarmer 24 | . 6 . . . . . 13 3 . . . . 2 . Grunt 26 | . 4 . . 1 . 5 7 8 1 . . . . . Brawler 1 | . . . . . . . . . 1 . . . . . Duelist 3 | . . . . 1 . 1 . . . . . . 1 . Sentry 15 | . . . 1 . . . 10 2 . . . . 2 . Hunter 4 | . . . . . . 1 . 2 . . . . 1 . Programmer 9 | . . . . . . . . 5 . . . . 4 . Thug 2 | . . . . . . . . . 2 . . . . . Butcher 1 | . . . . . . . . . 1 . . . . . Mutant 1 | . . . . . . . . . 1 . . . . . Best Kill Streak 5 | . 3 . 1 1 . 4 5 5 2 . . . 3 . Combat Bots Only 5 | . 3 . 1 1 . 3 5 4 2 . . . 3 . Max Kills in Single Turn 3 | . 1 . 1 1 . 2 2 3 1 . . . 3 . Gunslinging 1 | . . . . . . . 1 . . . . . . . Exploded 3 | . . . . . . 2 2 3 1 . . . 3 . Melee 1 | . . . . . . . . 1 . . . . 1 . Uniques/NPCs Destroyed . | . . . . . . . . . . . . . . . Combat | -11 -10 -10 -9 -9 -9 -8 -8 -7 -7 -7 -6 -6 -6 -6 -------- Run | Scr Mat Min Mat Min Exi Min Mat Fac Low Low Fac Was Fac Low Damage Taken 4429 | . 336 . 43 78 . 64 763 996 381 . . . 1373 395 Core 515 | . 41 . . 39 . 19 50 66 21 . . . 217 62 Absorbed by Shields 559 | . . . 16 29 . 24 259 231 . . . . . . Core Remaining (%) 89 | 100 . 83 . . . 85 90 . . 87 . . . . Volleys Fired 346 | . 31 . 4 9 . 10 66 64 28 . . . 127 7 Largest 2 | . 2 . 2 2 . 2 2 2 2 . . . 2 1 Hottest 117 | . 40 . 40 40 . 117 117 50 50 . . . 115 90 Shots Fired 561 | . 62 . 8 18 . 12 123 120 45 . . . 166 7 Gun 399 | . 62 . 8 18 . . 107 112 39 . . . 53 . Cannon 125 | . . . . . . 4 8 . . . . . 106 7 Launcher 31 | . . . . . . 8 8 3 5 . . . 7 . Special 6 | . . . . . . . . 5 1 . . . . . Kinetic 406 | . 62 . 8 18 . 2 112 112 39 . . . 53 . Thermal 113 | . . . . . . . . . . . . . 106 7 Explosive 31 | . . . . . . 8 8 3 5 . . . 7 . Electromagnetic 5 | . . . . . . 2 3 . . . . . . . Robot Hit Streak 13 | . 10 . 2 11 . 6 13 12 7 . . . 10 . Robot Miss Streak 5 | . 2 . 2 2 . 3 3 5 3 . . . 4 . Penetration Max 1 | . . . . . . 1 1 . . . . . . . Secondary Targets 4 | . . . . . . . 3 1 . . . . . . Max Gunslinging Chain 1 | . . . . . . . 1 1 . . . . . . Shots Hit Robots 325 | . 37 . 3 13 . 9 89 89 20 . . . 65 . Core Hits 197 | . 17 . 3 6 . 18 50 54 18 . . . 31 . Critical Hits 5 | . . . . . . . 3 1 . . . . 1 . Critical Kills 3 | . . . . . . . 1 1 . . . . 1 . Critical Parts Destroyed 2 | . . . . . . . 2 . . . . . . . Melee Attacks 100 | . . . . . . . . 67 3 . . . 30 . Impact . | . . . . . . . . . . . . . . . Slashing 100 | . . . . . . . . 67 3 . . . 30 . Piercing . | . . . . . . . . . . . . . . . Sneak Attacks 7 | . . . . . . . . 6 . . . . 1 . Combat Hostiles . | . . . . . . . . . . . . . . . Follow-up Attacks . | . . . . . . . . . . . . . . . Damage Inflicted 9945 | . 397 . 42 154 . 866 2484 2623 699 . . . 2680 . Guns 4411 | . 393 . 30 134 . . 1487 1388 295 . . . 684 . Cannons 1164 | . . . . . . 138 153 . . . . . 873 . Explosions 2814 | . . . . . . 703 682 459 404 . . . 566 . Melee 1333 | . . . . . . . . 776 . . . . 557 . Ramming 223 | . 4 . 12 20 . 25 162 . . . . . . . Kinetic 4586 | . 393 . 30 134 . 78 1584 1388 295 . . . 684 . Thermal 954 | . . . . . . . . . . . . . 954 . Explosive 2733 | . . . . . . 703 682 459 404 . . . 485 . Electromagnetic 116 | . . . . . . 60 56 . . . . . . . Impact . | . . . . . . . . . . . . . . . Slashing 1333 | . . . . . . . . 776 . . . . 557 . Piercing . | . . . . . . . . . . . . . . . Highest Corruption 7 | . . . . . . . . 7 7 7 . . 5 4 Average Corruption 3 | . . . . . . . . 2 7 7 . . 3 3 Corruption Purged 4 | . . . . . . . . . . . . . 3 1 Effects 95 | . . . . . . . . 32 22 1 . . 35 5 Message Errors 24 | . . . . . . . . 12 2 . . . 8 2 Matter Fused 10 | . . . . . . . . 2 3 1 . . 4 . Heat Flow Errors 18 | . . . . . . . . 4 5 . . . 9 . Energy Discharges 12 | . . . . . . . . 5 1 . . . 5 1 Parts Rejected 1 | . . . . . . . . . 1 . . . . . Data Loss (minor) 11 | . . . . . . . . 6 1 . . . 3 1 Data Loss (major) 2 | . . . . . . . . . 2 . . . . . Misfires 2 | . . . . . . . . . 2 . . . . . Targeting Errors 15 | . . . . . . . . 3 5 . . . 6 1 Overload Shots . | . . . . . . . . . . . . . . . Overflow Damage 307 | . . . . . . 16 34 57 21 . . . 179 . Projectiles 31 | . . . . . . . . . . . . . 31 . Explosions 63 | . . . . . . 16 14 . 21 . . . 12 . Melee 213 | . . . . . . . 20 57 . . . . 136 . Knockbacks 2 | . . . . . . 1 1 . . . . . . . Impact 2 | . . . . . . 1 1 . . . . . . . Kinetic . | . . . . . . . . . . . . . . . Secondary . | . . . . . . . . . . . . . . . Self-Inflicted Damage 163 | . . . . . . . 14 . 85 . . . 64 . Shots 6 | . . . . . . . 1 . 2 . . . 3 . Rammed 23 | . 4 . 1 3 . 2 13 . . . . . . . Targets Rammed 26 | . 5 . 1 4 . 3 13 . . . . . . . Kicked . | . . . . . . . . . . . . . . . Crushed 3 | . 1 . . 1 . 1 . . . . . . . . Highest Temperature 331 | . 10 . . 3 . 54 174 155 250 . . . 331 90 Average Temperature 46 | . 6 . . 2 . 24 24 23 85 . . . 77 41 Received Heat Transfer 950 | . 96 . 16 28 . 18 210 201 45 . . . 264 72 Effects 3 | . . . . . . . . . . . . . 3 . Interference 3 | . . . . . . . . . . . . . 3 . Siege Activations . | . . . . . . . . . . . . . . . Robots Corrupted . | . . . . . . . . . . . . . . . Combat Hostiles . | . . . . . . . . . . . . . . . Parts Fried . | . . . . . . . . . . . . . . . Impact Corruptions 1 | . . . . . . . 1 . . . . . . . Robots Melted . | . . . . . . . . . . . . . . . Combat Hostiles . | . . . . . . . . . . . . . . . Parts Melted 3 | . . . 2 . . . . . . . . . 1 . Heat Transferred 1209 | . . . . . . . . . . . . . 1209 . Parts Sabotaged . | . . . . . . . . . . . . . . . Parts Stolen . | . . . . . . . . . . . . . . . Parts Stripped . | . . . . . . . . . . . . . . . Power Chain Reactions . | . . . . . . . . . . . . . . . Missiles Intercepted . | . . . . . . . . . . . . . . . Alert | -11 -10 -10 -9 -9 -9 -8 -8 -7 -7 -7 -6 -6 -6 -6 ------- Run | Scr Mat Min Mat Min Exi Min Mat Fac Low Low Fac Was Fac Low Peak Influence 850 | . 266 3 347 90 . 250 387 850 . . 190 66 508 . Initial 190 | . . 3 . 85 . . 19 174 . . 190 66 46 . Average 185 | . 71 3 172 47 . 88 203 277 . . 190 66 178 . Maximum Alert Level 3 | . 1 . 1 . . 1 1 3 . . . . 2 . Low Security (%) 66 | 100 97 100 49 100 . 85 52 58 . . 100 100 61 . Level 1 17 | . 2 . 50 . . 14 47 5 . . . . 17 . Level 2 15 | . . . . . . . . 32 . . . . 21 . Level 3 1 | . . . . . . . . 3 . . . . . . Level 4 . | . . . . . . . . . . . . . . . Level 5 . | . . . . . . . . . . . . . . . High Security . | . . . . . . . . . . . . . . . Max Security . | . . . . . . . . . . . . . . . Squads Dispatched 35 | . 1 . 1 . . 1 1 17 . . . . 14 . Investigation 14 | . 1 . . . . . . 5 . . . . 8 . Extermination 8 | . . . . . . . . 4 . . . . 4 . Reinforcement 9 | . . . 1 . . 1 1 4 . . . . 2 . Assault 2 | . . . . . . . . 2 . . . . . . Garrison 2 | . . . . . . . . 2 . . . . . . Intercept . | . . . . . . . . . . . . . . . Construction Impeded 2 | . . . . . . 1 . 1 . . . . . . Haulers Reinforced 1 | . . . . . . . . 1 . . . . . . Stealth | -11 -10 -10 -9 -9 -9 -8 -8 -7 -7 -7 -6 -6 -6 -6 --------- Run | Scr Mat Min Mat Min Exi Min Mat Fac Low Low Fac Was Fac Low Distress Signals 15 | . 2 . 5 . . . 4 2 . . . . 2 . Communications Jammed . | . . . . . . . . . . . . . . . Distress Signals . | . . . . . . . . . . . . . . . Times Spotted 197 | . 23 . 13 4 . 7 44 54 8 . . . 42 2 Peak Tracking Total 7 | . 4 . 6 3 . 3 5 5 5 . . . 7 2 Tactical Retreats 31 | . 2 . 1 1 . . 2 13 . . . . 12 . Traps | -11 -10 -10 -9 -9 -9 -8 -8 -7 -7 -7 -6 -6 -6 -6 ------- Run | Scr Mat Min Mat Min Exi Min Mat Fac Low Low Fac Was Fac Low Traps Triggered 18 | . 1 . . . . . 2 10 . . 1 . 4 . Indirectly . | . . . . . . . . . . . . . . . Trap Hack Attempts . | . . . . . . . . . . . . . . . Triggered . | . . . . . . . . . . . . . . . Disarmed . | . . . . . . . . . . . . . . . Reprogrammed . | . . . . . . . . . . . . . . . Reused . | . . . . . . . . . . . . . . . Traps Extracted . | . . . . . . . . . . . . . . . Installed . | . . . . . . . . . . . . . . . Triggered . | . . . . . . . . . . . . . . . Exploded 1 | . . . . . 1 . . . . . . . . . Machines | -11 -10 -10 -9 -9 -9 -8 -8 -7 -7 -7 -6 -6 -6 -6 ---------- Run | Scr Mat Min Mat Min Exi Min Mat Fac Low Low Fac Was Fac Low Machines Disabled 14 | . . . . . . 2 4 . . . . . 8 . Max in Single Turn 4 | . . . . . . 2 1 . . . . . 4 . Garrison Access 6 | . . . . . . . 1 4 . . . . 1 . Machines Sabotaged . | . . . . . . . . . . . . . . . Garrisons Compromised . | . . . . . . . . . . . . . . . Overloaded Fab Kills . | . . . . . . . . . . . . . . . Fab Network Shutdowns 1 | . . . . . . . . 1 . . . . . . Hacking | -11 -10 -10 -9 -9 -9 -8 -8 -7 -7 -7 -6 -6 -6 -6 --------- Run | Scr Mat Min Mat Min Exi Min Mat Fac Low Low Fac Was Fac Low Machines Accessed 76 | . 6 . 4 1 2 . 11 23 1 . . . 28 . Terminals 40 | . 4 . 3 . . . 7 11 . . . . 15 . Fabricators 6 | . . . . . . . . 3 . . . . 3 . Repair Stations 5 | . . . . . . . 1 2 . . . . 2 . Recycling Units 11 | . 2 . 1 . . . 1 2 . . . . 5 . Scanalyzers 4 | . . . . . . . 1 1 . . . . 2 . Garrison Access 6 | . . . . . . . 1 4 . . . . 1 . Total Hacks 219 | . 19 . 17 1 2 . 24 55 1 . . . 100 . Successful 137 | . 11 . 8 1 2 . 11 37 1 . . . 66 . Failed 81 | . 8 . 9 . . . 13 18 . . . . 33 . Catastrophic 10 | . 1 . . . . . 3 2 . . . . 4 . Database Lockouts 1 | . . . . . . . . . . . . . 1 . Manual 84 | . 10 . 12 . 1 . 17 14 . . . . 30 . Terminals 134 | . 16 . 14 . . . 17 28 . . . . 59 . Fabricators 22 | . . . . . . . . 10 . . . . 12 . Repair Stations 16 | . . . . . . . 2 4 . . . . 10 . Recycling Units 21 | . 3 . 3 . . . 2 5 . . . . 8 . Scanalyzers 14 | . . . . . . . 2 2 . . . . 10 . Garrison Access 8 | . . . . . . . 1 6 . . . . 1 . Terminal Hacks 65 | . 6 . 4 1 2 . 3 18 1 . . . 30 . Record 10 | . . . 1 . 1 . . 3 . . . . 5 . Part Schematic 2 | . . . . . . . . . . . . . 2 . Robot Analysis 8 | . 3 . . . . . 1 2 . . . . 2 . Prototype ID Bank 3 | . . . . . . . . . . . . . 3 . Open Door 2 | . . . . 1 . . . . 1 . . . . . Level Access Points 1 | . . . . . . . . . . . . . 1 . Branch Access Points 2 | . . . . . . . . 1 . . . . 1 . Emergency Access Points 2 | . . . . . . . . 1 . . . . 1 . Terminal Index 2 | . . . 1 . . . . . . . . . 1 . Fabricator Index 2 | . . . . . . . . 1 . . . . 1 . Repair Station Index 1 | . . . . . . . . . . . . . 1 . Scanalyzer Index 2 | . . . . . . . . 1 . . . . 1 . Alert Level 1 | . . . . . . . . . . . . . 1 . Unreport Threat 5 | . . . . . . . 1 2 . . . . 2 . Locate Traps 11 | . 1 . 1 . . . . 4 . . . . 5 . Surveillance Status 1 | . . . . . . . . . . . . . 1 . Recall Extermination 1 | . . . . . . . . 1 . . . . . . Hauler Manifests 7 | . 2 . 1 . . . 1 1 . . . . 2 . Zone Layout 1 | . . . . . . . . 1 . . . . . . EX-Prototype ID Bank 1 | . . . . . 1 . . . . . . . . . Fabricator Hacks 13 | . . . . . . . . 6 . . . . 7 . Network Status 2 | . . . . . . . . . . . . . 2 . Load Schematic 6 | . . . . . . . . 3 . . . . 3 . Build 5 | . . . . . . . . 3 . . . . 2 . Repair Station Hacks 14 | . . . . . . . 2 4 . . . . 8 . Scan Component 7 | . . . . . . . 1 2 . . . . 4 . Repair 7 | . . . . . . . 1 2 . . . . 4 . Recycling Unit Hacks 10 | . 2 . 1 . . . . 1 . . . . 6 . Retrieve Components 10 | . 2 . 1 . . . . 1 . . . . 6 . Scanalyzer 14 | . . . . . . . 2 2 . . . . 10 . Insert Component 8 | . . . . . . . 1 1 . . . . 6 . Analyze 6 | . . . . . . . 1 1 . . . . 4 . Garrison Access Hacks 6 | . . . . . . . 1 4 . . . . 1 . Seal Access 6 | . . . . . . . 1 4 . . . . 1 . Unauthorized Hacks 15 | . 3 . 3 . . . 3 2 . . . . 4 . Terminals 15 | . 3 . 3 . . . 3 2 . . . . 4 . Track 3 | . 2 . 1 . . . . . . . . . . . Assimilate 1 | . . . . . . . . . . . . . 1 . Botnet 6 | . . . 1 . . . 2 1 . . . . 2 . Operators 5 | . 1 . 1 . . . 1 1 . . . . 1 . Fabricators . | . . . . . . . . . . . . . . . Repair Stations . | . . . . . . . . . . . . . . . Recycling Units . | . . . . . . . . . . . . . . . Scanalyzers . | . . . . . . . . . . . . . . . Garrison Access . | . . . . . . . . . . . . . . . Data Cores Recovered . | . . . . . . . . . . . . . . . Used . | . . . . . . . . . . . . . . . Hacking Detections 53 | . 6 . 4 . . . 8 17 . . . . 18 . Full Trace Events 10 | . 1 . . . . . . 2 . . . . 7 . Feedback Events 4 | . . . . . . . . 1 . . . . 3 . Corruption 2 | . . . . . . . . . . . . . 2 . Hackware Fried 2 | . . . . . . . . 1 . . . . 1 . Feedback Blocked . | . . . . . . . . . . . . . . . Robot Schematics Acquired . | . . . . . . . . . . . . . . . Robots Built . | . . . . . . . . . . . . . . . Matter . | . . . . . . . . . . . . . . . Time . | . . . . . . . . . . . . . . . Total Robot Build Rating . | . . . . . . . . . . . . . . . Part Schematics Acquired 8 | . . . . . . . 1 1 . . . . 6 . Parts Built 6 | . . . . . . . . 2 . . . . 4 . Matter 884 | . . . . . . . . 504 . . . . 380 . Time 196 | . . . . . . . . 134 . . . . 62 . Total Part Build Rating 28 | . . . . . . . . 8 . . . . 20 . Parts Repaired 7 | . . . . . . . 1 2 . . . . 4 . Time 182 | . . . . . . . 16 47 . . . . 119 . Parts Recycled . | . . . . . . . . . . . . . . . Recycled Matter . | . . . . . . . . . . . . . . . Retrieved Matter . | . . . . . . . . . . . . . . . Retrieved Components 30 | . 9 . 10 . . . . 3 . . . . 8 . Parts Scanalyzed 6 | . . . . . . . 1 1 . . . . 4 . Part Schematics Acquired 6 | . . . . . . . 1 1 . . . . 4 . Parts Damaged . | . . . . . . . . . . . . . . . Bothacking | -11 -10 -10 -9 -9 -9 -8 -8 -7 -7 -7 -6 -6 -6 -6 ------------ Run | Scr Mat Min Mat Min Exi Min Mat Fac Low Low Fac Was Fac Low Used RIF Installer . | . . . . . . . . . . . . . . . Robots Hacked 3 | . . . . . . . . 3 . . . . . . Non-combat 3 | . . . . . . . . 3 . . . . . . Combat . | . . . . . . . . . . . . . . . Robot Hacks Applied 4 | . . . . . . . . 4 . . . . . . find_chute 4 | . . . . . . . . 4 . . . . . . Relay Couplers Released . | . . . . . . . . . . . . . . . Robots Rewired . | . . . . . . . . . . . . . . . Allies Hacked . | . . . . . . . . . . . . . . . Hacks Repelled . | . . . . . . . . . . . . . . . Allies | -11 -10 -10 -9 -9 -9 -8 -8 -7 -7 -7 -6 -6 -6 -6 -------- Run | Scr Mat Min Mat Min Exi Min Mat Fac Low Low Fac Was Fac Low Total Allies 6 | . . 5 . . . . . . . . . . 1 . Largest Group 5 | . . 5 5 1 . . . . . . . . 1 . Highest-Rated Group 86 | . . 86 86 31 . . . . . . . . 10 . Highest-Rated Ally 31 | . . 31 31 31 . . . . . . . . 10 . Total Orders . | . . . . . . . . . . . . . . . Ally Attacks 66 | . . . 59 7 . . . . . . . . . . Total Damage 1002 | . . . 899 103 . . . . . . . . . . Kills 14 | . . . 13 1 . . . . . . . . . . Allies Corrupted . | . . . . . . . . . . . . . . . Allies Melted . | . . . . . . . . . . . . . . . Intel | -11 -10 -10 -9 -9 -9 -8 -8 -7 -7 -7 -6 -6 -6 -6 ------- Run | Scr Mat Min Mat Min Exi Min Mat Fac Low Low Fac Was Fac Low Robot Analysis Total 8 | . 3 . . . . . 1 2 . . . . 2 . Derelict Logs Recovered 3 | . . . . 2 . . . . 1 . . . . . Drone Launches . | . . . . . . . . . . . . . . . Drone Recoveries . | . . . . . . . . . . . . . . . Exploration | -11 -10 -10 -9 -9 -9 -8 -8 -7 -7 -7 -6 -6 -6 -6 ------------- Run | Scr Mat Min Mat Min Exi Min Mat Fac Low Low Fac Was Fac Low Turns Passed 14810 | 10 1133 324 593 995 537 717 2232 4286 743 24 22 49 2964 181 Spaces Moved 12706 | 3 663 201 337 567 306 364 1060 4022 1242 22 32 74 3634 179 Core . | . . . . . . . . . . . . . . . Treads 4216 | 3 512 201 337 567 306 364 1060 866 . . . . . . Legs . | . . . . . . . . . . . . . . . Wheels 151 | . 151 . . . . . . . . . . . . . Hover 8339 | . . . . . . . . 3156 1242 22 32 74 3634 179 Flight . | . . . . . . . . . . . . . . . Fastest Speed 38 | 160 100 160 160 160 160 180 180 38 38 38 38 38 38 68 Average Speed 86 | 160 146 160 161 160 173 180 180 68 38 38 38 38 47 68 Slowest Speed 180 | 160 160 160 180 160 180 180 180 180 38 38 38 38 102 68 Overloaded Moves . | . . . . . . . . . . . . . . . Propulsion Burnouts . | . . . . . . . . . . . . . . . Robots Hopped . | . . . . . . . . . . . . . . . Cave-ins Triggered . | . . . . . . . . . . . . . . . Exploration Rate (%) 55 | 2 88 38 30 96 69 79 91 79 88 6 1 72 81 18 Regions Visited 14 Branch Regions 7 Pre-discovered Areas 1 | . . . . . 1 . . . . . . . . . Known Exits Taken 3 | . . . . . . . 1 1 . . . . 1 . Unknown Exits Taken 9 | 1 1 1 1 1 1 1 . . 1 1 . . . . Scrap Searched 4 | . . . . . . . . . 4 . . . . . Spaces Dug 190 | . . . . . . . . 55 3 . . . 125 7 Terrain Destroyed 507 | . . . . . . 63 61 66 72 . . . 238 7 Melee 78 | . . . . . . . . 55 3 . . . 20 . Projectile 88 | . . . . . . . 1 . . . . . 80 7 AOE 341 | . . . . . . 63 60 11 69 . . . 138 . Terrain Rammed . | . . . . . . . . . . . . . . . Walls Destroyed . | . . . . . . . . . . . . . . . Machines Disabled . | . . . . . . . . . . . . . . . Actions | -11 -10 -10 -9 -9 -9 -8 -8 -7 -7 -7 -6 -6 -6 -6 --------- Run | Scr Mat Min Mat Min Exi Min Mat Fac Low Low Fac Was Fac Low Total 15901 | 10 771 204 377 636 312 410 1285 5364 1479 37 42 95 4649 230 Wait 2269 | . 40 4 26 42 . 26 101 1082 178 16 8 18 687 41 Move 12693 | 2 662 200 336 566 305 363 1059 4021 1241 21 32 73 3633 179 Hop . | . . . . . . . . . . . . . . . Pick Up 105 | . 13 . 4 6 3 3 16 29 6 . . 1 24 . Fast Attach 45 | 1 4 . . . . . 5 11 2 . . . 22 . Attach 54 | 3 1 . 2 1 . . 4 16 4 . 2 1 19 1 Detach 24 | 1 . . . 1 . . 2 7 1 . . 2 10 . Swap 101 | . 4 . 2 4 2 4 8 33 8 . . . 34 2 Drop 107 | 3 11 . 2 3 2 1 11 30 7 . . . 37 . Fire 346 | . 31 . 4 9 . 10 66 64 28 . . . 127 7 Melee 100 | . . . . . . . . 67 3 . . . 30 . Ram . | . . . . . . . . . . . . . . . Kick . | . . . . . . . . . . . . . . . Crush 26 | . 5 . 1 4 . 3 13 . . . . . . . Escape Stasis 30 | . . . . . . . . 4 . . . . 26 . Rewire 1 | . . . . . . . . . 1 . . . . . Trap . | . . . . . . . . . . . . . . . Miscellaneous . | . . . . . . . . . . . . . . . Route ------- -11/Scrapyard -10/Materials (discovered 5 exits: *Mat x3 / [*Min x2]) -10/Mines -9/Materials (discovered 2 exits: *Min / [*Sto]) -9/Mines (discovered 4 exits: *Mat x2 / *Exi / [*Zio]) -9/Exiles -8/Mines (discovered 2 exits: *Mat x2) -8/Materials (discovered 3 exits: *Fac x3) -7/Factory (discovered 6 exits: [*Fac x4] / *Low x2) -7/Lower Caves -7/Lower Caves -6/Factory -6/Waste -6/Factory (discovered 6 exits: *Fac x4 / *Low x2) -6/Lower Caves History --------- Turn | Location | Event 8 | -11/Scrapyard | Discovered new exit (range 1) 11 | -11/Scrapyard | Entered Materials 62 | -10/Materials | Discovered new exit (range 14) 136 | -10/Materials | Discovered new exit (range 16) 302 | -10/Materials | Build established: Mutant 444 | -10/Materials | Discovered new exit (range 11) 496 | -10/Materials | Discovered new exit (range 8) 974 | -10/Materials | Discovered new exit (range 16) 1144 | -10/Materials | Entered Mines 1186 | -10/Mines | Discovered new exit (range 15) 1191 | -10/Mines | Met a Derelict bent on vengeance 1320 | -10/Mines | Assisted by bots powering up and referring to "LRC-V3" 1451 | -10/Mines | Assembled infested the area 1456 | -10/Mines | Assisted by a Guerilla fighting off Assembled 1468 | -10/Mines | Entered Materials 1468 | -9/Materials | Accompanied by 5 allies 1468 | -9/Materials | Evolved 2 slots: Propulsion x1, Utility x1 1473 | -9/Materials | Led the pair of lost Derelicts to an unsafe place 1597 | -9/Materials | Discovered new exit (range 14) 1905 | -9/Materials | Discovered new exit (range 8) 2061 | -9/Materials | Entered Mines 2061 | -9/Mines | Accompanied by 1 ally 2114 | -9/Mines | Learned 2 Materials zone layouts 2154 | -9/Mines | Deemed a non-threat by the Exiles lab entrance 2156 | -9/Mines | Discovered new exit (range 5) 2245 | -9/Mines | A Derelict revealed a hidden shortcut to a safe place 2362 | -9/Mines | Learned 2 Materials zone layouts 2408 | -9/Mines | Received a Rocket Launcher from a helpful Derelict 2409 | -9/Mines | Discovered new exit (range 12) 2451 | -9/Mines | Discovered new exit (range 8) 2523 | -9/Mines | Joined a pair of Derelicts in attacking an 0b10 outpost 2838 | -9/Mines | Found a damaged Exp. Sensor Array with a note attached 2841 | -9/Mines | Found Prototype Device 2842 | -9/Mines | Identified Exp. Sensor Array 2897 | -9/Mines | Met a Derelict who couldn't figure out how to use a Trap Extractor 3056 | -9/Mines | Entered Exiles 3095 | -9/Exiles | Met 8R-AWN 3122 | -9/Exiles | Met EX-HEX 3254 | -9/Exiles | Met EX-DEC 3282 | -9/Exiles | Learned location of Zion (-7) 3318 | -9/Exiles | Met EX-BIN 3347 | -9/Exiles | Aligned with FarCom system 3349 | -9/Exiles | Given EX-Vault access code 3396 | -9/Exiles | Opened EX-Vault 3408 | -9/Exiles | Found Cloak of Protection 3451 | -9/Exiles | Warned to stay clear of 0b10 Research branches 3470 | -9/Exiles | Exiles lab attacked by MAIN.C 3505 | -9/Exiles | Build established: Hauler-Mutant 3573 | -9/Exiles | Discovered new exit (range 12) 3593 | -9/Exiles | Left Exiles lab with Cloak of Protection 3593 | -9/Exiles | Entered Mines 4227 | -8/Mines | Discovered new exit (range 5) 4297 | -8/Mines | Discovered new exit (range 7) 4310 | -8/Mines | Entered Materials 4310 | -8/Materials | Evolved 2 slots: Utility x2 4311 | -8/Materials | Identified exit to Factory 5503 | -8/Materials | Repaired Imp. Treads 6238 | -8/Materials | Discovered exit to Factory (range 5) 6525 | -8/Materials | Discovered exit to Factory (range 8) 6542 | -8/Materials | Entered Factory 6542 | -7/Factory | Evolved 2 slots: Propulsion x1, Utility x1 6956 | -7/Factory | Discovered new exit (range 8) 7581 | -7/Factory | Garrison activated, responded to threat 8697 | -7/Factory | Hacking Suite fried by hacking feedback 8741 | -7/Factory | Fabricated Cld. Airjet? 8764 | -7/Factory | Fabricated Cld. Airjet? 8764 | -7/Factory | Build established: Hacker-Mutant 9030 | -7/Factory | Local fabrication network quarantined 9342 | -7/Factory | First assault squad dispatched 9408 | -7/Factory | Repaired Lgt. Angular Momentum Engine 9447 | -7/Factory | Discovered new exit (range 14) 9605 | -7/Factory | Repaired Chainsword 9633 | -7/Factory | Discovered new exit (range 15) 9759 | -7/Factory | Discovered new exit (range 20) 9896 | -7/Factory | Discovered new exit (range 16) 9990 | -7/Factory | Build established: Hacker-Scout 10602 | -7/Factory | Discovered new exit (range 6) 10765 | -7/Factory | Identified exit to Lower Caves 10828 | -7/Factory | Entered Lower Caves 11031 | -7/Lower Caves | Encountered a Warlord checkpoint 11094 | -7/Lower Caves | Learned Factory emergency access door positions 11119 | -7/Lower Caves | Build established: Hacker-Mutant 11120 | -7/Lower Caves | Discovered new exit (range 20) 11195 | -7/Lower Caves | Attacked by a faux Warlord 11571 | -7/Lower Caves | Entered another Lower Caves area 11577 | -7/Lower Caves | Discovered new exit (range 7) 11595 | -7/Lower Caves | Entered Factory 11595 | -6/Factory | Evolved 2 slots: Utility x2 11617 | -6/Factory | Sucked down chute 11617 | -6/Factory | Entered Waste 11617 | -6/Waste | The area was eerily silent 11658 | -6/Waste | Discovered new exit (range 16) 11666 | -6/Waste | Entered Factory 12037 | -6/Factory | Hacking Suite fried by hacking feedback 12178 | -6/Factory | Discovered new exit (range 17) 12229 | -6/Factory | Discovered new exit (range 19) 12258 | -6/Factory | Identified exit to Lower Caves 12319 | -6/Factory | Discovered new exit (range 16) 12426 | -6/Factory | Repaired Lrn. Terrain Scanner 12450 | -6/Factory | Repaired Greatsword 12700 | -6/Factory | Central database locked down 12812 | -6/Factory | Discovered new exit (range 18) 12921 | -6/Factory | Repaired Cld. Airjet 13049 | -6/Factory | Repaired Cld. Plasma Cannon 13147 | -6/Factory | Discovered new exit (range 24) 13209 | -6/Factory | Build established: Hacker-Scout 13276 | -6/Factory | Found Prototype Processor 13276 | -6/Factory | Identified Exp. Signal Interpreter 13501 | -6/Factory | Identified exit to Factory 13831 | -6/Factory | Fabricated Cmb. Airjet (x2) 14025 | -6/Factory | Fabricated Cmb. Airjet (x2) 14226 | -6/Factory | Build established: Hacker-Mutant 14630 | -6/Factory | Entered Lower Caves 14678 | -6/Lower Caves | Attracted the attention of an 0b10 checkpoint 14715 | -6/Lower Caves | Spotted B-75 Beast 14731 | -6/Lower Caves | Encountered a Warlord checkpoint 14811 | -6/Lower Caves | Self-destructed Last Messages --------------- 14625_ Overheating: System interference. 14625_ System Backup Module temporarily disabled. 14625_ Adv. Terrain Scan Processor temporarily disabled. 14625_ Phase Cannon temporarily disabled. 14626_ The unstable cave ceiling collapses. LOCATION=LOWER CAVES GOAL=ESCAPE 14678_ Y-54 Guardian: "INTERCEPTING UNREGISTERED DERELICT." 14681_ System corrupted: Component data lost. 14685_ System corrupted: Phase Cannon targeting data glitched. 14705_ BKEGM9FZRX/QM/JZ 14719_ Lrn. Terrain Scanner destroyed. 14731_ 2X-JQC(M): "Unaware activity is slow around here lately. Bring on the action!" 14736_ System corrupted: Energy discharge (-45). 14795_ System Backup Module purges 1% of system corruption (3%). 14801_ Lgt. Angular Momentum Engine destroyed. 14809_ PVC4X:4YLG1JUS|AQPJR 14811_ Phase Cannon destroyed. [Achievement: 10k Club] Map ----- +----------------------------------------------------+ | ????????????##?##?##?##?####?#?#?#??###???#?###?#? | | ????????????#?###?#?##??####?##?########?###??#### | | ???????????#?#???####?###??##?##?#######??#?###?## | | ?????????????#??##?#?####?###?#?###?##??#?#####??# | | ??????###########????#?#####?#?#####??##?#?#####?? | | ???#### ######### ######### ##?##???###?#?# | | ???# ## ####??##???##? | | #?## ## """" ######??####?? | | ?## ##### ## " #?#?###?#?##### | | ## ##?### # "" ##?###?####??#? | | # ####? ## #####???#?#?## | | ## ###? ####### #?######?###?? | | # #### #### ####?###?#?#?? | | # #??# ##?? ### #?####??#####? | | # ???# ###### ??## ####?######??# | | # ?#?## ###### ##?## ########?##?#? | | # ????### ###? ##### ######?##?##?# | | #??#???## ### #?####?####??# | | ?? ?#### ##### # ##?#######?### | | #?????# #### ############## #?#?######?##? | | # ???## #### ##?###?####### #?###?####?#?? | | # ??## ### ##########?#?## #?###?###?#### | | # ##?## ##################???########## | | # ?## #### ;#### #######?##?###?# | | ?####### Y ####;###########??#?# | | ??## ### @ ##########??##?# | | ### ## #####?########## | | ## ##?#####??##### | | #######?##?###? | | ######?#??#??? | | ## ##?#########?# | | ## ## ;# ### #####?###?#???# | | ?###### ## ### #########?##?#### | | ?#?#??# ## ### #######??##???#??#??#? | | ?????#?# ### ##### ###?#?#####???#??#?#?? | | ?#?##### #######?#?## #####?##?????????#?#?? | | ???# ###?###?##?#?#####?#?###?????#???##?? | | ? ? ?##### ##????##??#?###??######?#?#??#????#??? | | ????? ???####????##?##??###??##???#????#??#?#?#?## | | ??? ???#??#?#?#??#???####?#####???##???##??#???#?? | | ##???????????######???######?#?#??#????#?#????#??? | | ##???###??#?#????#?#??#????#?####????#????#??###?? | | ???#?????#????????####?##???##????##????##?#?????? | | #?##??##???###??##????##?#???#??##?###???????????? | | ?????##???##???####??#??#????#?###???#???????????? | | ??????#?#?#??#????###??????#?#?#??#?#????????????? | | ??####???##?#?#?#?????##?#?#?????#?#?????#?#?????? | | ???????#????##?##????##??######?????#??#??#??????? | | ###??????##????????##?###??#?#??#???#????????????? | | ?#?##???#??#????#?????##???#????#??#?????????????? | +----------------------------------------------------+ Best States ------------- Heat Dissipation 37 Energy Generation 18 Energy Capacity 250 Matter Stores 300 Matter Capacity 300 Sight Range 16 Terrain Scan Range 24 Terrain Scan Density 210 Armor Coverage 300 Resistance: TH 10 Resistance: EM 25 Propulsion Shielding 66 Evasion (%) 57 Recoil Reduction 4 Offensive Hacking 30 Defensive Hacking 12 Item Schematics ----------------- Gravmag System | -8/Materials | Scanalyzed Cld. Airjet | -7/Factory | Scanalyzed Lrn. Terrain Scanner | -6/Factory | Scanalyzed Lgt. Fission Core | -6/Factory | Hacked Imp. Hacking Suite | -6/Factory | Scanalyzed Cmb. Airjet | -6/Factory | Scanalyzed Imp. Propulsion Shielding | -6/Factory | Scanalyzed Plasma Rifle | -6/Factory | Hacked Robot Schematics ------------------ None Fabricated ------------ Cld. Airjet | x1 | -7/Factory Cld. Airjet | x1 | -7/Factory Cmb. Airjet | x2 | -6/Factory Cmb. Airjet | x2 | -6/Factory Alien Tech Used ----------------- None Achievements -------------- 10k Club Prolific Hacker Challenges ------------ None Game ------ Seed ContainmentRagnarokThrower Manual? 0 Play Time 04:01:56 Cumulative 26.0 hours Start 2020.10.30 @ 12:56:03 End 2020.10.30 @ 21:49:31 Sessions 1 Manual Loads 0 Difficulty Rogue Special Mode Halloween2020/ForbiddenLore Game No. 19 Rogue 19 Adventurer 0 Explorer 0 Win Type - Total 0 Types 0/0/0/0/0/0/0/0/0 Lore% 15 Gallery% 15 Achievement% 17 Wizard Run 0 Options --------- ASCII 1 Keyboard 1 Movement Vi Keybinds 0 Fullscreen 1 Font 16/Terminus Map View 75x55 Tactical HUD 1 Map Filters NONE Filters NONE Steam 1 RUN: 55eba0b4-75c8-465d-9f6e-ac198d669b89